bitfinex/quotes_ETHUSD_20240928
["timestamp","ask_amount","ask_price","bid_price","bid_amount"]
[1727518113876,1.57031451,2674.0,2673.8,3.73998]
[1727518114073,1.57031451,2674.0,2673.9,3.73985]
[1727518114307,1.57031451,2674.0,2673.9,4.55405]
[1727518114485,1.17765999,2674.1,2673.9,5.383453]
[1727518114785,1.17765999,2674.1,2674.0,3.73971]
[1727518123899,1.17765999,2674.2,2674.0,3.73971]
[1727518124098,1.17765999,2674.2,2674.1,3.73957]
[1727518124297,1.17765999,2674.2,2674.1,4.55377]
[1727518124917,1.17765999,2674.2,2674.1,7.55377]
[1727518125120,1.17765999,2674.3,2674.2,6.73943]
[1727518125322,1.17802892,2674.3,2674.2,10.55909974]
[1727518140756,1.57031451,2674.5,2674.3,6.73929]
[1727518140926,1.57031451,2674.5,2674.4,6.73915]
[1727518141127,2.83130428,2674.5,2674.4,6.73915]
[1727518143666,2.83130428,2674.5,2674.4,8.3882431]
[1727518143960,1.96315123,2674.6,2674.5,6.73901]
[1727518143961,1.17754533,2674.6,2674.5,6.73901]
[1727518144167,1.57031451,2674.7,2674.5,7.95176331]
[1727518144168,1.17754533,2674.7,2674.5,7.95176331]
[1727518144361,1.17754533,2674.7,2674.6,6.73887]
[1727518144519,1.17754533,2674.7,2674.6,8.14511489]
[1727518145134,1.34086811,2674.7,2674.6,8.14511489]
[1727518146575,0.94798216,2674.7,2674.6,9.71943048]
[1727518147441,0.94798216,2674.7,2674.6,10.51693048]
[1727518147648,0.16332278,2674.7,2674.6,11.06693048]
[1727518147975,0.78465938,2675.2,2675.1,7.53567]
[1727518148130,0.78465938,2675.4,2675.2,3.73803]
[1727518148331,0.78465938,2675.4,2675.3,5.31220559]
[1727518148841,0.94291715,2675.4,2675.3,5.31220559]
[1727518149474,0.15825777,2675.4,2675.3,5.31220559]
[1727518151340,0.78465938,2675.6,2675.3,1.57431559]
[1727518151541,0.78465938,2675.6,2675.5,3.73761]
[1727518152350,0.94297199,2675.6,2675.5,3.73761]
[1727518153182,0.15831261,2675.6,2675.5,5.31192559]
[1727518153338,0.15831261,2675.6,2675.5,5.86959514]
[1727518153538,1.59096447,2675.8,2675.5,2.13198514]
[1727518153740,1.59096447,2675.8,2675.7,3.73733]
[1727518154161,0.8084,2675.8,2675.7,3.73733]
[1727518154873,0.8084,2675.8,2675.7,3.73594731]
[1727518156043,0.96689189,2675.8,2675.7,3.73594731]
[1727518157344,0.15849189,2675.8,2675.7,3.73594731]
[1727518157540,0.78256447,2676.0,2675.9,3.73706]
[1727518157747,0.15844617,2676.0,2675.9,3.73706]
[1727518158650,0.804,2676.2,2676.1,3.73678]
[1727518159596,0.96342896,2676.2,2676.1,3.73678]
[1727518161235,0.15942896,2676.2,2676.1,3.73678]
[1727518161396,0.15942896,2676.2,2676.1,7.64905406]
[1727518161597,0.804,2676.4,2676.3,3.7365]
[1727518162124,0.96360381,2676.4,2676.3,3.7365]
[1727518162482,0.15960381,2676.4,2676.3,6.10871559]
[1727518162697,0.15960381,2676.4,2676.3,7.56666912]
[1727518163016,0.0747,2676.8,2676.7,3.73594]
[1727518165430,1.64901559,2676.8,2676.6,3.73599]
[1727518165582,0.804,2676.7,2676.6,3.73599]
[1727518166479,0.804,2676.7,2676.4,3.73628]
[1727518166685,0.804,2676.4,2676.3,3.7365]
[1727518166981,0.95918884,2676.4,2676.3,3.7365]
[1727518168309,0.95918884,2676.4,2676.3,2.918119]
[1727518168523,0.15518884,2676.4,2676.3,2.918119]
[1727518168713,0.804,2676.6,2676.3,2.918119]
[1727518168913,0.804,2676.6,2676.5,3.73622]
[1727518170105,0.8787,2676.8,2676.7,3.73594]
[1727518170301,0.0747,2676.8,2676.7,3.73594]
[1727518174009,0.22993544,2676.8,2676.7,3.73594]
[1727518174205,0.0747,2676.8,2676.7,3.73594]
[1727518174505,0.22993544,2676.8,2676.7,3.73594]
[1727518174727,0.0747,2676.8,2676.7,3.73594]
[1727518175130,0.22996407,2676.8,2676.7,3.73594]
[1727518176532,1.80427966,2676.8,2676.7,3.73594]
[1727518176735,2.06510763,2676.8,2676.7,3.73594]
[1727518177109,1.80427966,2676.8,2676.7,3.73594]
[1727518178336,1.80427966,2676.8,2676.6,3.73606]
[1727518178510,0.8042,2676.7,2676.6,3.736]
[1727518178713,0.95944784,2676.7,2676.6,3.736]
[1727518179336,0.95944784,2676.7,2676.5,7.47242]
[1727518179538,1.22029418,2676.7,2676.5,3.73615]
[1727518179715,1.22029418,2676.7,2676.6,3.73608]
[1727518185156,0.95944784,2676.7,2676.6,3.73608]
[1727518185512,0.15524784,2676.7,2676.6,3.73608]
[1727518185713,1.64901559,2676.8,2676.7,3.73594]
[1727518186146,1.79412986,2676.8,2676.7,3.73594]
[1727518189231,2.737092,2676.8,2676.7,3.73594]
[1727518190134,3.51965647,2676.8,2676.7,3.73594]
[1727518190947,3.51965647,2676.8,2676.6,7.47208]
[1727518191269,0.7951,2676.6,2676.5,3.73617]
[1727518191570,4.09508976,2676.6,2676.5,3.73617]
[1727518191727,5.01222733,2676.6,2676.5,3.73617]
[1727518191926,5.01223533,2676.6,2676.5,3.73617]
[1727518192170,5.40790216,2676.6,2676.5,3.73617]
[1727518192959,4.23035683,2676.6,2676.5,3.73617]
[1727518193270,5.40790216,2676.6,2676.5,3.73617]
[1727518194155,5.49052111,2676.6,2676.5,3.73617]
[1727518195027,4.54671064,2676.6,2676.5,3.73617]
[1727518195228,6.11702515,2676.6,2676.5,3.73617]
[1727518196771,2.97070701,2676.6,2676.5,4.51987]
[1727518196970,0.14022822,2676.6,2676.5,4.51987]
[1727518197267,1.31515248,2676.6,2676.5,4.51987]
[1727518199552,1.40109434,2676.6,2676.5,4.51987]
[1727518200167,2.97140885,2676.6,2676.5,4.51987]
[1727518200461,1.40109434,2676.6,2676.5,4.51987]
[1727518200767,2.97140885,2676.6,2676.5,4.51987]
[1727518203253,1.40109434,2676.6,2676.5,4.51987]
[1727518205390,3.36155157,2676.6,2676.5,4.51987]
[1727518206893,3.36375897,2676.6,2676.5,4.51987]
[1727518208178,3.36375897,2676.6,2676.5,3.73617]
[1727518208385,1.98045999,2676.6,2676.5,3.73617]
[1727518208565,3.36426595,2676.6,2676.5,3.73617]
[1727518209663,3.36426595,2676.6,2676.5,4.51987]
[1727518211900,1.40109434,2676.6,2676.5,3.73617]
[1727518214496,1.40109434,2676.6,2676.5,4.49847]
[1727518214747,2.10377331,2676.6,2676.5,4.49847]
[1727518214884,1.7110634,2676.6,2676.5,5.321947]
[1727518215086,2.97192952,2676.6,2676.5,5.321947]
[1727518215787,1.40109434,2676.6,2676.5,5.321947]
[1727518216327,2.66211484,2676.6,2676.5,8.321947]
[1727518216486,2.26906383,2676.6,2676.5,8.321947]
[1727518216692,1.09121138,2676.6,2676.5,9.89626259]
[1727518216889,0.14022822,2676.6,2676.5,10.44626259]
[1727518217104,0.14022822,2676.6,2676.5,10.75738129]
[1727518217336,0.85991392,2676.8,2676.7,7.49824]
[1727518217520,1.81532485,2676.8,2676.7,7.49824]
[1727518217720,1.81532485,2676.8,2676.7,9.07255559]
[1727518218230,0.0747,2676.8,2676.7,9.62255559]
[1727518218438,0.0747,2676.8,2676.7,11.55154563]
[1727518219234,0.0747,2676.8,2676.7,11.24070166]
[1727518220862,1.96308743,2677.9,2676.7,11.24070166]
[1727518220863,0.78521392,2677.7,2677.6,0.7623]
[1727518221085,0.78521392,2677.7,2677.6,4.946692]
[1727518221282,1.17785245,2677.9,2677.7,3.73454]
[1727518221482,1.73179413,2677.8,2677.7,3.73454]
[1727518221683,0.78297746,2677.8,2677.7,3.73454]
[1727518221872,1.73179413,2677.8,2677.7,3.73454]
[1727518222187,0.78297746,2677.9,2677.8,3.7344]
[1727518222398,1.73174999,2677.9,2677.8,3.7344]
[1727518223344,0.01,2678.0,2677.9,3.73426]
[1727518223744,0.15196977,2678.0,2677.9,3.73426]
[1727518223940,0.15196977,2678.0,2677.8,3.7344]
[1727518224174,0.8169,2677.8,2677.5,3.0]
[1727518224358,3.30345485,2677.7,2677.5,3.0]
[1727518224658,2.49841266,2677.7,2677.5,3.73481]
[1727518225387,1.72899155,2677.6,2677.4,3.73495]
[1727518225548,1.57431559,2677.5,2677.4,3.73495]
[1727518225755,1.57431559,2677.5,2677.4,6.73495]
[1727518225756,1.71629703,2677.5,2677.4,6.73495]
[1727518226382,0.14198144,2677.5,2677.4,6.73495]
[1727518226781,0.78209978,2677.7,2677.4,6.73495]
[1727518227092,1.72848688,2677.6,2677.4,3.73495]
[1727518227248,0.92365703,2677.6,2677.4,3.73495]
[1727518228269,0.92365703,2677.6,2677.4,3.73487]
[1727518228468,0.14155725,2677.6,2677.5,3.73482]
[1727518229494,0.78209978,2677.8,2677.7,3.73454]
[1727518229712,0.14146468,2677.6,2677.5,4.49705]
[1727518229849,0.78209978,2677.9,2677.6,3.73465]
[1727518230191,1.72813816,2677.8,2677.6,3.73465]
[1727518230384,0.78209978,2677.9,2677.6,3.73465]
[1727518230585,0.78209978,2677.9,2677.6,7.46925]
[1727518230789,0.94592293,2677.8,2677.6,7.46925]
[1727518230990,0.14152062,2677.8,2677.6,7.46925]
[1727518231485,0.14152062,2677.8,2677.7,3.73454]
[1727518231889,0.21753855,2677.8,2677.7,3.73454]
[1727518232092,0.07601793,2677.8,2677.7,3.73454]
[1727518233393,0.07601793,2677.8,2677.7,4.40511021]
[1727518233598,0.29347386,2677.8,2677.7,4.40511021]
[1727518233766,0.07601793,2677.8,2677.7,4.40511021]
[1727518233950,0.29349387,2677.8,2677.7,4.40511021]
[1727518234153,0.07601793,2677.8,2677.7,4.40511021]
[1727518234677,0.29349387,2677.8,2677.7,4.40511021]
[1727518234990,0.07601793,2677.8,2677.7,4.40511021]
[1727518235159,0.29349387,2677.8,2677.7,4.40511021]
[1727518235362,0.07601793,2677.8,2677.7,4.40511021]
[1727518235595,0.29349387,2677.8,2677.7,4.40511021]
[1727518235794,0.07601793,2677.8,2677.7,4.40511021]
[1727518235950,0.29349387,2677.8,2677.7,4.40511021]
[1727518236594,0.29349387,2677.8,2677.7,7.40511021]
[1727518239330,0.07601793,2677.8,2677.7,7.40511021]
[1727518240328,0.07601793,2677.8,2677.7,8.16431021]
[1727518244330,0.28646274,2677.8,2677.7,8.16431021]
[1727518244542,0.07601793,2677.8,2677.7,8.16431021]
[1727518246346,0.07601793,2677.8,2677.7,12.11659941]
[1727518251709,0.7648,2679.1,2677.8,1.333]
[1727518251710,0.005,2679.1,2677.8,1.333]
[1727518251914,0.005,2679.1,2679.0,3.73273]
[1727518252435,0.7648,2679.1,2679.0,3.73273]
[1727518252620,0.7648,2679.1,2678.8,3.73291]
[1727518253658,0.7648,2679.1,2678.7,3.73305]
[1727518253857,0.7648,2679.1,2678.8,3.73299]
[1727518254892,0.7648,2679.1,2679.0,3.73273]
[1727518256726,0.005,2679.1,2679.0,4.479289]
[1727518256917,0.005,2679.1,2679.0,5.284589]
[1727518257253,0.005,2679.1,2679.0,8.35924026]
[1727518257452,0.005,2679.1,2679.0,8.284589]
[1727518258120,0.005,2679.1,2679.0,8.834589]
[1727518258356,0.005,2679.1,2679.0,7.479289]
[1727518258516,0.005,2679.1,2679.0,6.73273]
[1727518258720,0.19328122,2679.1,2678.9,3.73286]
[1727518259043,0.19328122,2679.1,2679.0,3.73273]
[1727518259437,0.19328122,2679.1,2678.8,3.73292]
[1727518259640,0.19328122,2679.1,2678.8,7.46585]
[1727518259828,0.19328122,2679.1,2678.8,3.73292]
[1727518260432,5.01768898,2679.0,2678.7,3.73307]
[1727518260660,0.18838746,2678.9,2678.6,3.73319]
[1727518260831,0.18838746,2678.9,2678.7,3.73313]
[1727518261851,0.18838746,2678.9,2678.6,7.4664]
[1727518262017,0.97048724,2678.9,2678.6,3.73319]
[1727518262212,0.97048724,2678.9,2678.7,3.73313]
[1727518262213,0.13838746,2678.9,2678.7,3.73313]
[1727518262453,0.96854497,2678.9,2678.7,3.73313]
[1727518264161,0.96854497,2678.9,2678.5,7.46674]
[1727518264361,0.96854497,2678.9,2678.6,3.73321]
[1727518264658,1.73206762,2678.8,2678.6,3.73321]
[1727518264871,0.78209978,2678.9,2678.7,3.73314]
[1727518265024,0.94995363,2678.8,2678.7,3.73314]
[1727518265225,1.73205736,2678.8,2678.7,3.73314]
[1727518265563,1.73205736,2678.8,2678.5,3.73333]
[1727518265716,0.7986,2678.7,2678.5,3.73329]
[1727518265918,0.98505175,2678.7,2678.6,3.73327]
[1727518268187,0.98505175,2678.7,2678.2,3.0]
[1727518268188,4.38734095,2678.7,2678.4,3.73356]
[1727518268346,5.16944073,2678.7,2678.4,3.73356]
[1727518268541,5.16944073,2678.7,2678.2,3.0]
[1727518268880,1.73230578,2678.6,2678.4,3.73349]
[1727518269040,0.96845643,2678.6,2678.3,7.46718]
[1727518269244,0.96845643,2678.6,2678.4,3.73354]
[1727518269547,0.18635665,2678.6,2678.4,3.73354]
[1727518270253,0.96845643,2678.6,2678.3,3.73358]
[1727518270441,1.91872641,2678.6,2678.4,3.73351]
[1727518270643,0.96845643,2678.6,2678.4,3.73351]
[1727518270954,0.96845643,2678.6,2678.5,3.73343]
[1727518271156,0.18635665,2678.6,2678.5,3.73343]
[1727518273084,0.78209978,2678.8,2678.7,3.73315]
[1727518273285,0.78209978,2678.9,2678.8,3.73301]
[1727518273446,0.78209978,2679.0,2678.9,3.73287]
[1727518273669,1.73264681,2679.0,2678.9,3.73287]
[1727518273871,2.12839948,2679.0,2678.9,3.73287]
[1727518276895,2.12891195,2679.0,2678.9,3.73287]
[1727518277102,2.31514782,2679.0,2678.9,3.73287]
[1727518277687,2.31529531,2679.0,2678.9,3.73287]
[1727518279372,2.31529531,2679.0,2678.8,3.73299]
[1727518279579,2.21973321,2678.9,2678.8,3.73299]
[1727518279773,0.8331,2678.8,2678.6,3.73317]
[1727518280015,4.5757196,2678.7,2678.4,3.73348]
[1727518280180,0.78231964,2678.5,2678.4,3.73348]
[1727518280380,1.73367414,2678.5,2678.4,3.73348]
[1727518280602,1.91988705,2678.5,2678.4,3.73348]
[1727518280807,1.919877,2678.5,2678.4,3.73348]
[1727518281623,1.92044713,2678.5,2678.4,3.73348]
[1727518283385,0.18621168,2678.5,2678.4,4.480197]
[1727518283585,0.18621168,2678.5,2678.4,5.311097]
[1727518284033,0.18621168,2678.5,2678.4,8.311097]
[1727518286557,0.18621168,2678.5,2678.4,7.480197]
[1727518286853,0.96934141,2678.5,2678.4,6.73348]
[1727518287057,1.92132954,2678.5,2678.4,6.73348]
[1727518287416,1.92132954,2678.5,2678.4,3.73348]
[1727518287616,1.13819981,2678.5,2678.4,3.73348]
[1727518288714,2.31163021,2678.5,2678.4,3.73348]
[1727518291116,2.31247484,2678.5,2678.4,3.73348]
[1727518291357,2.40982743,2678.5,2678.4,3.73348]
[1727518291559,2.31497763,2678.5,2678.4,5.311097]
[1727518291765,2.31497763,2678.5,2678.4,8.311097]
[1727518292272,1.92295786,2678.5,2678.4,8.311097]
[1727518292535,1.13904444,2678.5,2678.4,8.311097]
[1727518293345,1.92302838,2678.5,2678.4,8.311097]
[1727518293884,1.13904444,2678.5,2678.4,8.311097]
[1727518294482,0.18621168,2678.5,2678.4,8.311097]
[1727518295003,0.18621168,2678.5,2678.1,3.73389]
[1727518295004,6.09379276,2678.5,2678.1,3.73389]
[1727518295201,6.09379276,2678.5,2677.6,1.17212911]
[1727518295202,3.4022892,2678.2,2677.6,0.7702]
[1727518295377,1.56805194,2677.9,2677.8,3.73429]
[1727518295562,3.7920936,2677.9,2677.8,3.73429]
[1727518295758,3.97789062,2677.9,2677.8,3.73429]
[1727518297368,2.40910489,2677.9,2677.8,3.73429]
[1727518297760,2.3137526,2677.9,2677.8,3.73429]
[1727518298668,1.13842007,2677.9,2677.8,3.73429]
[1727518299069,1.92180717,2677.9,2677.8,3.73429]
[1727518299275,1.13842007,2677.9,2677.8,3.73429]
[1727518299772,2.3137526,2677.9,2677.8,3.73429]
[1727518300396,1.13842007,2677.9,2677.8,3.73429]
[1727518300712,1.13787232,2677.9,2677.8,3.73429]
[1727518301264,0.64877291,2677.9,2677.8,8.328393]
[1727518301512,1.17533253,2678.6,2678.2,0.7702]
[1727518301815,1.17533253,2678.7,2678.5,6.73343]
[1727518302016,1.17420858,2678.7,2678.6,3.0]
[1727518302312,1.17420858,2678.7,2678.6,6.73329]
[1727518302313,2.12523207,2678.7,2678.6,6.73329]
[1727518302484,0.95102349,2678.7,2678.6,6.73329]
[1727518302993,0.46148401,2679.0,2678.6,3.0]
[1727518303199,0.46148401,2679.0,2678.8,3.73288]
[1727518303714,1.96276155,2679.1,2678.8,3.73288]
[1727518303916,1.24963324,2679.0,2678.8,3.73301]
[1727518304070,1.24963324,2678.9,2678.8,3.73301]
[1727518304272,1.96276155,2679.1,2678.9,3.73285]
[1727518304572,1.24754694,2679.0,2678.8,3.73299]
[1727518304771,1.96276155,2679.1,2678.8,3.73299]
[1727518305047,1.24754636,2679.0,2678.9,3.73287]
[1727518305384,1.39434321,2679.0,2678.9,3.73287]
[1727518305789,0.14679685,2679.0,2678.9,3.73287]
[1727518306773,1.3943097,2679.0,2678.9,3.73287]
[1727518307016,0.14679685,2679.0,2678.9,3.73287]
[1727518307324,0.14679685,2679.0,2678.9,4.479456]
[1727518308490,0.14679685,2679.0,2678.9,3.73287]
[1727518309385,1.57866378,2679.0,2678.9,3.73287]
[1727518311009,3.14443993,2679.0,2678.9,3.73287]
[1727518313711,1.39946378,2679.0,2678.9,3.73287]
[1727518313906,1.32102701,2679.0,2678.9,3.73287]
[1727518315253,1.32102701,2679.0,2678.9,4.479456]
[1727518315620,0.14679685,2679.0,2678.9,4.479456]
[1727518315824,0.92949504,2679.0,2678.9,4.479456]
[1727518320160,1.32102701,2679.0,2678.9,3.73287]
[1727518320338,0.92928344,2679.0,2678.9,3.73287]
[1727518320534,0.14679685,2679.0,2678.9,3.73287]
[1727518321056,0.92929,2679.0,2678.9,3.73287]
[1727518321257,0.14679685,2679.0,2678.9,4.479457]
[1727518329976,0.005,2679.1,2679.0,3.73273]
[1727518330732,0.78749315,2679.1,2679.0,3.73273]
[1727518331544,0.005,2679.1,2679.0,3.73273]
[1727518333677,0.15232186,2679.1,2679.0,3.73273]
[1727518341392,0.15232186,2679.1,2679.0,7.47929]
[1727518341536,0.15232186,2679.1,2679.0,8.23489]
[1727518342382,0.005,2679.1,2679.0,8.23489]
[1727518345382,0.005,2679.1,2679.0,8.78489]
[1727518345881,0.005,2679.1,2679.0,12.18182334]
[1727518347286,0.005,2679.1,2679.0,12.49206788]
[1727518347454,0.005,2679.1,2679.0,12.18182334]
[1727518348191,0.005,2679.1,2679.0,12.49206612]
[1727518348483,0.005,2679.1,2679.0,12.18182334]
[1727518349260,0.005,2679.4,2679.3,8.03791]
[1727518349456,0.005,2679.4,2679.3,11.43484334]
[1727518349656,0.005,2679.4,2679.3,8.03791]
[1727518349862,0.005,2679.4,2679.3,7.48791]
[1727518350163,0.005,2679.4,2679.3,7.56254039]
[1727518350402,0.005,2679.4,2679.3,8.85118536]
[1727518350602,0.005,2679.4,2679.3,8.77655497]
[1727518351793,0.005,2679.4,2679.3,12.72348831]
[1727518351960,0.005,2679.4,2679.3,8.77655497]
[1727518353017,0.14856698,2679.4,2679.3,8.02095497]
[1727518353190,0.005,2679.4,2679.3,8.02095497]
[1727518353371,0.005,2679.4,2679.3,6.73231]
[1727518353372,0.14856543,2679.4,2679.3,6.73231]
[1727518353579,0.005,2679.4,2679.3,6.73231]
[1727518353902,0.14857543,2679.4,2679.3,6.73231]
[1727518354106,0.005,2679.4,2679.3,6.73231]
[1727518354276,0.14850944,2679.4,2679.3,6.73231]
[1727518354480,0.005,2679.4,2679.3,6.73231]
[1727518354713,0.14850944,2679.4,2679.3,6.73231]
[1727518354931,0.1892,2679.4,2679.3,6.73231]
[1727518355096,1.11520259,2679.4,2679.3,3.73231]
[1727518355400,1.5069396,2679.4,2679.3,3.73231]
[1727518355604,2.05790837,2679.4,2679.3,3.73231]
[1727518356378,1.27546037,2679.4,2679.3,3.73231]
[1727518356573,1.27558306,2679.4,2679.3,3.73231]
[1727518356824,2.05809503,2679.4,2679.3,3.73231]
[1727518357190,1.87389503,2679.4,2679.3,6.73231]
[1727518357393,0.14850944,2679.4,2679.3,7.478785]
[1727518358528,0.14850944,2679.4,2679.3,7.5534175]
[1727518358837,0.005,2679.4,2679.3,7.5534175]
[1727518360590,0.005,2679.4,2679.3,8.3035175]
[1727518360821,0.005,2679.4,2679.3,8.228885]
[1727518361125,0.005,2679.4,2679.3,8.778885]
[1727518362411,0.005,2679.4,2679.3,12.17581834]
[1727518366196,0.005,2679.4,2679.3,10.34599471]
[1727518369440,0.005,2679.4,2679.3,10.79894643]
[1727518369592,0.005,2679.4,2679.3,11.22586806]
[1727518369921,0.005,2679.4,2679.3,11.10848429]
[1727518370122,0.005,2679.4,2679.3,10.79894643]
[1727518370688,0.005,2679.4,2679.3,10.34599471]
[1727518371713,0.005,2679.4,2679.3,8.778885]
[1727518371924,0.005,2679.4,2679.3,5.778885]
[1727518372999,0.005,2679.4,2679.3,8.778885]
[1727518376228,0.005,2679.4,2679.3,12.17384306]
[1727518378155,0.005,2679.4,2679.3,8.778885]
[1727518379725,0.005,2679.4,2679.3,8.228885]
[1727518381335,0.005,2679.4,2679.3,3.73231]
[1727518381534,0.1892,2679.4,2679.3,3.73231]
[1727518382618,0.1892,2679.4,2679.3,6.73231]
[1727518383331,0.1892,2679.4,2679.3,3.0]
[1727518383531,1.36343016,2679.4,2679.3,3.73231]
[1727518383744,3.03256764,2679.4,2679.3,3.73231]
[1727518384363,2.30590691,2679.4,2679.3,3.73231]
[1727518385019,1.13167675,2679.4,2679.3,3.73231]
[1727518385224,2.30590691,2679.4,2679.3,3.73231]
[1727518385425,0.1892,2679.4,2679.3,6.73231]
[1727518385659,1.91416304,2679.4,2679.3,6.73231]
[1727518385863,0.1892,2679.4,2679.3,6.73231]
[1727518386335,0.005,2679.4,2679.3,6.73231]
[1727518386759,0.78740299,2679.4,2679.3,6.73231]
[1727518386944,0.005,2679.4,2679.3,6.73231]
[1727518388356,0.005,2679.4,2679.3,7.778785]
[1727518397757,0.005,2679.4,2679.3,8.561885]
[1727518399369,0.005,2679.4,2679.3,9.111885]
[1727518399698,0.005,2679.4,2679.3,8.114324]
[1727518399902,0.005,2679.4,2679.3,5.379575]
[1727518400062,0.005,2679.4,2679.3,9.18651085]
[1727518400264,0.005,2679.4,2679.3,9.111885]
[1727518406323,0.005,2679.4,2679.3,10.67904868]
[1727518407029,0.005,2679.4,2679.3,10.98927123]
[1727518407231,0.005,2679.4,2679.3,10.67904868]
[1727518407752,0.005,2679.4,2679.3,10.98926477]
[1727518407931,0.005,2679.4,2679.3,10.67904868]
[1727518418269,0.005,2679.4,2679.3,11.67246615]
[1727518419543,0.005,2679.4,2679.3,10.67904868]
[1727518420485,0.005,2679.4,2679.3,11.67234789]
[1727518422152,0.005,2679.4,2679.3,11.67262679]
[1727518423185,0.005,2679.4,2679.3,10.10546311]
[1727518423382,0.005,2679.4,2679.3,10.67904868]
[1727518432709,0.005,2679.4,2679.3,11.64856998]
[1727518433309,0.005,2679.4,2679.3,10.67904868]
[1727518433469,0.005,2679.4,2679.3,11.64847954]
[1727518434178,0.005,2679.4,2679.3,12.42989894]
[1727518435567,0.005,2679.4,2679.3,11.64847954]
[1727518435771,0.005,2679.4,2679.3,12.42642902]
[1727518435972,0.005,2679.4,2679.3,12.42645929]
[1727518436475,0.005,2679.4,2679.3,11.45702843]
[1727518436716,0.005,2679.4,2679.3,12.42629397]
[1727518438171,0.005,2679.4,2679.3,10.40714726]
[1727518438379,0.005,2679.4,2679.3,11.09831422]
[1727518438612,0.005,2679.4,2679.3,10.12904868]
[1727518439617,0.005,2679.4,2679.3,10.67904868]
[1727518440328,0.005,2679.4,2679.3,9.111885]
[1727518440518,0.005,2679.4,2679.3,8.328785]
[1727518440895,0.14146769,2679.4,2679.3,8.328785]
[1727518441411,0.005,2679.4,2679.3,8.328785]
[1727518442418,0.14144856,2679.4,2679.3,8.328785]
[1727518443621,0.005,2679.4,2679.3,8.328785]
[1727518444124,0.14144856,2679.4,2679.3,8.328785]
[1727518447614,0.14144856,2679.4,2679.3,7.28231]
[1727518449945,0.14144856,2679.4,2679.3,7.35694065]
[1727518453442,0.14144856,2679.4,2679.3,8.18964065]
[1727518453644,0.14144856,2679.4,2679.3,9.08531668]
[1727518453846,0.005,2679.4,2679.3,8.11501]
[1727518454022,0.005,2679.4,2679.3,10.50456561]
[1727518454223,0.005,2679.4,2679.3,10.50456598]
[1727518454551,0.005,2679.4,2679.3,9.53426934]
[1727518455555,0.14135822,2679.4,2679.3,9.53426934]
[1727518455717,0.005,2679.4,2679.3,9.53426934]
[1727518455919,0.14135822,2679.4,2679.3,9.53426934]
[1727518456708,0.005,2679.4,2679.3,9.53426934]
[1727518457047,0.14135822,2679.4,2679.3,9.53426934]
[1727518457254,0.005,2679.4,2679.3,9.53426934]
[1727518457415,0.14135822,2679.4,2679.3,9.53426934]
[1727518457616,0.005,2679.4,2679.3,9.53426934]
[1727518458246,0.14135822,2679.4,2679.3,9.53426934]
[1727518458421,0.005,2679.4,2679.3,9.53426934]
[1727518458615,0.14135822,2679.4,2679.3,9.53426934]
[1727518458949,0.0084783,2679.4,2679.3,9.53426934]
[1727518459128,0.14483652,2679.4,2679.3,9.53426934]
[1727518461678,0.14483652,2679.4,2679.3,8.70156934]
[1727518464060,0.0084783,2679.4,2679.3,8.70156934]
[1727518464860,0.14483652,2679.4,2679.3,8.70156934]
[1727518468782,0.14483652,2679.4,2679.3,9.67207571]
[1727518468945,0.14483652,2679.4,2679.3,10.50477743]
[1727518469272,0.0084783,2679.4,2679.3,10.50477743]
[1727518469837,0.0084783,2679.4,2679.3,11.59321959]
[1727518470033,0.0084783,2679.4,2679.3,12.44032067]
[1727518470546,0.0084783,2679.4,2679.3,13.73432392]
[1727518470855,0.0084783,2679.4,2679.3,12.44032067]
[1727518471234,0.0084783,2679.4,2679.3,11.59330076]
[1727518471543,0.0084783,2679.4,2679.3,10.81523984]
[1727518472668,0.0084783,2679.4,2679.3,11.59330076]
[1727518473869,0.0084783,2679.4,2679.3,11.5930748]
[1727518474235,0.0084783,2679.4,2679.3,10.81501388]
[1727518474637,0.0084783,2679.4,2679.3,11.5930748]
[1727518474967,0.0084783,2679.4,2679.3,10.62279267]
[1727518475171,0.0084783,2679.4,2679.3,11.59311925]
[1727518475671,0.0084783,2679.4,2679.3,10.81505833]
[1727518475873,0.0084783,2679.4,2679.3,11.59311925]
[1727518476475,0.0084783,2679.4,2679.3,10.81505833]
[1727518477553,0.0084783,2679.4,2679.3,11.59311925]
[1727518478183,0.0084783,2679.4,2679.3,11.28265684]
[1727518478479,0.0084783,2679.4,2679.3,10.62272242]
[1727518478980,0.0084783,2679.4,2679.3,10.81499032]
[1727518480157,0.0084783,2679.4,2679.3,9.8446615]
[1727518481880,0.0084783,2679.4,2679.3,10.62283943]
[1727518482187,0.0084783,2679.4,2679.3,11.59319035]
[1727518482477,0.0084783,2679.4,2679.3,10.62283943]
[1727518482656,0.0084783,2679.4,2679.3,9.8446615]
[1727518483286,0.0084783,2679.4,2679.3,11.59339521]
[1727518486861,0.0084783,2679.4,2679.3,10.81512504]
[1727518487462,0.0084783,2679.4,2679.3,11.59339521]
[1727518488094,0.0084783,2679.4,2679.3,11.28300305]
[1727518488279,0.0084783,2679.4,2679.3,11.59343871]
[1727518490392,0.0084783,2679.4,2679.3,11.59324943]
[1727518491204,0.0084783,2679.4,2679.3,11.59326473]
[1727518492588,0.0084783,2679.4,2679.3,11.59326338]
[1727518492794,0.0084783,2679.4,2679.3,10.81516854]
[1727518493010,0.0084783,2679.4,2679.3,11.59321844]
[1727518493160,0.0084783,2679.4,2679.3,10.81516854]
[1727518493361,0.0084783,2679.4,2679.3,11.59322011]
[1727518493557,0.0084783,2679.4,2679.3,11.59297365]
[1727518494302,0.0084783,2679.4,2679.3,11.59294694]
[1727518496202,0.0084783,2679.4,2679.3,11.28251128]
[1727518496704,0.0084783,2679.4,2679.3,10.50448642]
[1727518496860,0.0084783,2679.4,2679.3,11.28255288]
[1727518497372,0.0084783,2679.4,2679.3,10.50448642]
[1727518498187,0.0084783,2679.4,2679.3,11.28260583]
[1727518498715,0.92680365,2680.0,2679.6,3.73182]
[1727518498878,0.78412535,2680.0,2679.9,6.73148]
[1727518499197,1.75138394,2680.0,2679.9,6.73148]
[1727518500715,1.88784358,2680.0,2679.9,6.73148]
[1727518501629,0.27905964,2680.0,2679.9,6.73148]